Cogmind - Beta 12 X1 @@@ ROGUE MODE // 2022.08.27 @ 14:08:32 Player: Decinym Result: Destroyed by 8R-AWN with 8R-AWN's Boregun Performance ------------- Evolutions (0) 0 Regions Visited (3) 600 Robots Destroyed (23) 115 Value Destroyed (547) 547 Prototype IDs (23) 460 Alien Tech Used (0) 0 Bonus (300) 300 TOTAL SCORE: 2022 Bonus ------- Aligned with FarCom 300 Cogmind --------- Core Integrity 0/250 Matter 160/300 Energy 250/250 System Corruption 1% Temperature Cool (0) Movement Treading (320) Ox2 Location -10/Exiles Parts ------- > --- POWER (1) -------- Ion Engine > --- PROPULSION (2) --- Light Treads Light Treads > --- UTILITY (2) ------ High-capacity Storage Unit Light Armor Plating > --- WEAPON (2) ------- Assault Rifle Assault Rifle > --- INVENTORY (20) --- Light Treads Light Treads Improved Heat Sink Particle Cannon Grenade Launcher Plasma Cutter Peak State ------------ > --- POWER ------------ Ion Engine > --- PROPULSION ------- Aluminum Leg Aluminum Leg > --- UTILITY ---------- Large Storage Unit Targeting Computer > --- WEAPON ----------- Particle Cannon Particle Cannon > --- INVENTORY -------- Ion Engine Light Treads Light Treads Light Treads Aluminum Leg Wheel Compact Wheel Improved Heat Sink High-capacity Matter Pod Small Laser Particle Cannon Assault Rifle Grenade Launcher Plasma Cutter Plasma Cutter [Rating: 11] Favorites ----------- Power Ion Engine Engine Ion Engine Propulsion Light Treads Treads Light Treads Leg Aluminum Leg Utility Targeting Computer Storage Large Storage Unit Processor Targeting Computer Protection Utility Shielding Weapon Particle Cannon Energy Gun Small Laser Energy Cannon Particle Cannon Ballistic Gun Assault Rifle Launcher Grenade Launcher Special Weapon Plasma Cutter Build | -11 -10 -10 -10 ------- Run | Scr Mat Min Exi Slots Evolved . | . . . . Power . | . . . . Propulsion . | . . . . Utility . | . . . . Weapon . | . . . . Parts Attached 25 | . 11 3 11 Power 2 | . . 1 1 Engine 2 | . . 1 1 Core . | . . . . Reactor . | . . . . Propulsion 5 | . 2 2 1 Treads 3 | . . 2 1 Leg 2 | . 2 . . Wheel . | . . . . Hover . | . . . . Flight . | . . . . Utility 7 | . 5 . 2 Device . | . . . . Storage 3 | . 2 . 1 Processor 1 | . 1 . . Hackware . | . . . . Protection 3 | . 2 . 1 Artifact . | . . . . Weapon 11 | . 4 . 7 Energy Gun 2 | . 2 . . Energy Cannon 2 | . 2 . . Ballistic Gun 4 | . . . 4 Ballistic Cannon . | . . . . Launcher 1 | . . . 1 Special Weapon 2 | . . . 2 Impact Weapon . | . . . . Slashing Weapon . | . . . . Piercing Weapon . | . . . . Special Melee Weapon . | . . . . Unidentified Prototypes . | . . . . Parts Lost 6 | . 1 . 5 Power 1 | . . . 1 Propulsion 1 | . . . 1 Utility . | . . . . Weapon 4 | . 1 . 3 Highest Loss Streak 5 | . 1 . 5 To Critical Strikes 3 | . . . 3 Average Slot Usage (%) 94 | . 99 100 87 Engine 13 | . 14 14 13 Treads 14 | . . 14 27 Leg 13 | . 28 13 . Storage 14 | . 14 14 14 Processor 12 | . 10 14 13 Protection 1 | . 2 . . Energy Gun 6 | . 17 . . Energy Cannon 13 | . 5 28 11 Ballistic Gun 2 | . 5 . 2 Naked Turns . | . . . . Heaviest Build 51 | 14 33 33 51 Greatest Support 40 | 20 20 40 40 Greatest Overweight (x) 1 | . 1 1 1 Average Overweight (x) . | . . . . Largest Inventory Capacity 20 | . 15 15 20 Average Capacity 15 | . 11 15 18 Most Carried 17 | . 15 15 17 Average Carried 13 | . 10 14 14 Final Capacity 20 | 8 15 15 20 Final Carried 15 | 6 15 15 6 Class Distribution -------------------- 100% | Mutant Dominant Class ---------------- Mutant | -10/Materials Mutant | -10/Mines Mutant | -10/Exiles Resources | -11 -10 -10 -10 ----------- Run | Scr Mat Min Exi Matter Collected 727 | 200 349 84 94 Remotely . | . . . . Salvage Created 1031 | . 775 254 2 Parts 48 | . 36 12 . Haulers Intercepted 2 | . 2 . . Recyclers Shooed 6 | . 5 1 . Parts Field Recycled . | . . . . Retrieved Matter . | . . . . Parts Self-Destructed . | . . . . Prevented . | . . . . Kills | -11 -10 -10 -10 ------- Run | Scr Mat Min Exi Combat Hostiles Destroyed 21 | . 10 7 4 Guns 10 | . 10 . . Cannons 7 | . . 7 . AOE 4 | . . . 4 Classes Destroyed 6 | . 4 1 1 Hauler 2 | . 2 . . Recycler 4 | . 4 . . Swarmer 5 | . 2 3 . Grunt 10 | . 8 2 . Sentry 2 | . . 2 . Assembled 4 | . . . 4 Best Kill Streak 4 | . 4 3 4 Combat Bots Only 4 | . 2 3 4 Max Kills in Single Turn 2 | . 1 2 1 Gunslinging . | . . . . Exploded 1 | . . . 1 Melee . | . . . . Uniques/NPCs Destroyed . | . . . . Combat | -11 -10 -10 -10 -------- Run | Scr Mat Min Exi Damage Taken 1375 | . 444 144 787 Core 260 | . 109 16 135 Absorbed by Shields . | . . . . Redirected to Shielding 4 | . 4 . . Core Remaining (%) 100 | 100 . . . Volleys Fired 84 | . 49 10 25 Largest 2 | . 2 2 2 Hottest 136 | . 136 136 46 Shots Fired 159 | . 98 20 41 Gun 126 | . 94 . 32 Cannon 24 | . 4 20 . Launcher 4 | . . . 4 Special 5 | . . . 5 Kinetic 63 | . 31 . 32 Thermal 86 | . 61 20 5 Explosive 4 | . . . 4 Electromagnetic 6 | . 6 . . Robot Hit Streak 14 | . 13 11 14 Robot Miss Streak 4 | . 4 2 1 Penetration Max . | . . . . Secondary Targets . | . . . . Shots Hit Robots 117 | . 71 13 33 Core Hits 52 | . 31 8 13 Critical Kills . | . . . . Critical Parts Destroyed . | . . . . Critical Strikes . | . . . . Melee Attacks . | . . . . Impact . | . . . . Slashing . | . . . . Piercing . | . . . . Sneak Attacks . | . . . . Combat Hostiles . | . . . . Follow-up Attacks . | . . . . Damage Inflicted 1771 | . 900 288 583 Guns 1226 | . 858 . 368 Cannons 330 | . 42 288 . Explosions 211 | . . . 211 Melee . | . . . . Ramming . | . . . . Kinetic 682 | . 314 . 368 Thermal 828 | . 536 288 4 Explosive 211 | . . . 211 Electromagnetic 50 | . 50 . . Impact . | . . . . Slashing . | . . . . Piercing . | . . . . Highest Corruption 1 | . 1 1 1 Average Corruption 1 | . 1 1 1 Corruption Purged . | . . . . Corruption Blocked . | . . . . Effects 13 | . 1 3 9 Message Errors 3 | . . . 3 Matter Fused 2 | . . 1 1 Heat Flow Errors 4 | . 1 1 2 Energy Discharges 1 | . . . 1 Data Loss (minor) 1 | . . . 1 Data Loss (major) 2 | . . 1 1 Overload Shots . | . . . . Overflow Damage 5 | . . . 5 Projectiles . | . . . . Explosions 5 | . . . 5 Melee . | . . . . Knockbacks . | . . . . Impact . | . . . . Kinetic . | . . . . Secondary . | . . . . Self-Inflicted Damage . | . . . . Shots . | . . . . Rammed . | . . . . Targets Rammed . | . . . . Kicked . | . . . . Crushed . | . . . . Highest Temperature 278 | . 198 278 233 Average Temperature 79 | . 56 118 96 Received Heat Transfer 308 | . 237 51 20 Effects 1 | . . 1 . Energy Bleed 1 | . . 1 . Siege Activations . | . . . . Robots Corrupted . | . . . . Combat Hostiles . | . . . . Parts Fried . | . . . . Impact Corruptions . | . . . . Robots Melted . | . . . . Combat Hostiles . | . . . . Parts Melted 6 | . 1 5 . Heat Transferred 1736 | . 1182 518 36 Parts Sabotaged . | . . . . Parts Stolen . | . . . . Parts Stripped . | . . . . Power Chain Reactions . | . . . . Missiles Intercepted . | . . . . Alert | -11 -10 -10 -10 ------- Run | Scr Mat Min Exi Peak Influence 185 | . 185 146 . Initial . | . . . . Average 72 | . 82 53 . Maximum Alert Level . | . . . . Low Security (%) 100 | . 100 100 . Level 1 . | . . . . Level 2 . | . . . . Level 3 . | . . . . Level 4 . | . . . . Level 5 . | . . . . High Security . | . . . . Max Security . | . . . . Squads Dispatched 1 | . 1 . . Investigation . | . . . . Extermination . | . . . . Reinforcement 1 | . 1 . . Assault . | . . . . Garrison . | . . . . Intercept . | . . . . Searches Triggered . | . . . . Construction Impeded . | . . . . Haulers Reinforced . | . . . . Active Scanning Responses . | . . . . Cargo Convoy Interrupts . | . . . . Stealth | -11 -10 -10 -10 --------- Run | Scr Mat Min Exi Distress Signals 1 | . 1 . . Communications Jammed . | . . . . Distress Signals . | . . . . Times Spotted 33 | . 20 7 6 Peak Tracking Total 9 | . 4 2 9 Tactical Retreats 1 | . 1 . . Traps | -11 -10 -10 -10 ------- Run | Scr Mat Min Exi Traps Triggered 1 | . 1 . . Indirectly . | . . . . Trap Hack Attempts . | . . . . Triggered . | . . . . Disarmed . | . . . . Reprogrammed . | . . . . Reused . | . . . . Traps Extracted . | . . . . Installed . | . . . . Triggered . | . . . . Exploded 3 | . . . 3 Machines | -11 -10 -10 -10 ---------- Run | Scr Mat Min Exi Machines Disabled 2 | . . . 2 Max in Single Turn 1 | . . . 1 Machines Sabotaged . | . . . . Garrisons Compromised . | . . . . Overloaded Fab Kills . | . . . . Hacking | -11 -10 -10 -10 --------- Run | Scr Mat Min Exi Machines Accessed 6 | . 4 . 2 Terminals 4 | . 4 . . Fabricators . | . . . . Repair Stations . | . . . . Recycling Units . | . . . . Scanalyzers . | . . . . Garrison Access . | . . . . Total Hacks 8 | . 6 . 2 Successful 5 | . 3 . 2 Failed 3 | . 3 . . Catastrophic 1 | . 1 . . Database Lockouts . | . . . . Manual 6 | . 5 . 1 Terminals 6 | . 6 . . Fabricators . | . . . . Repair Stations . | . . . . Recycling Units . | . . . . Scanalyzers . | . . . . Garrison Access . | . . . . Terminal Hacks 5 | . 3 . 2 Record 1 | . . . 1 Branch Access Points 1 | . 1 . . Alert Level 1 | . 1 . . Unreport Threat 1 | . 1 . . EX-Prototype ID Bank 1 | . . . 1 Fabricator Hacks . | . . . . Repair Station Hacks . | . . . . Recycling Unit Hacks . | . . . . Scanalyzer . | . . . . Garrison Access Hacks . | . . . . Unauthorized Hacks . | . . . . Terminals . | . . . . Fabricators . | . . . . Repair Stations . | . . . . Recycling Units . | . . . . Scanalyzers . | . . . . Garrison Access . | . . . . Data Cores Recovered . | . . . . Used . | . . . . Hacking Detections 2 | . 2 . . Full Trace Events . | . . . . Feedback Events . | . . . . Feedback Blocked . | . . . . Robot Schematics Acquired . | . . . . Robots Built . | . . . . Authchips . | . . . . Time . | . . . . Total Robot Build Rating . | . . . . Part Schematics Acquired . | . . . . Parts Built . | . . . . Authchips . | . . . . Time . | . . . . Total Part Build Rating . | . . . . Parts Repaired . | . . . . Time . | . . . . Parts Recycled . | . . . . Recycled Matter . | . . . . Retrieved Matter . | . . . . Retrieved Components . | . . . . Parts Scanalyzed . | . . . . Part Schematics Acquired . | . . . . Parts Damaged . | . . . . Bothacking | -11 -10 -10 -10 ------------ Run | Scr Mat Min Exi Used RIF Installer . | . . . . Robots Hacked . | . . . . Non-combat . | . . . . Combat . | . . . . Robot Hacks Applied . | . . . . Relay Couplers Released . | . . . . Fabnet Peak Effective % . | . . . . Robots Rewired . | . . . . Allies Hacked . | . . . . Hacks Repelled . | . . . . Allies | -11 -10 -10 -10 -------- Run | Scr Mat Min Exi Total Allies 2 | . . 2 . Largest Group 2 | . . 2 1 Highest-Rated Group 38 | . . 38 7 Highest-Rated Ally 31 | . . 31 7 Total Orders . | . . . . Ally Attacks 6 | . . 6 . Total Damage 64 | . . 64 . Kills . | . . . . Allies Corrupted . | . . . . Allies Melted . | . . . . Intel | -11 -10 -10 -10 ------- Run | Scr Mat Min Exi Robot Analysis Total . | . . . . Derelict Logs Recovered . | . . . . Drone Launches . | . . . . Drone Recoveries . | . . . . Exploration | -11 -10 -10 -10 ------------- Run | Scr Mat Min Exi Turns Passed 2447 | . 883 531 1033 Spaces Moved 1175 | 1 449 284 441 Core . | . . . . Treads 601 | . . 160 441 Legs 574 | 1 449 124 . Wheels . | . . . . Hover . | . . . . Flight . | . . . . Fastest Speed 120 | 120 120 160 160 Average Speed 176 | 120 148 173 206 Slowest Speed 240 | 120 190 190 240 Overloaded Moves . | . . . . Propulsion Burnouts . | . . . . Robots Hopped . | . . . . Cave-ins Triggered . | . . . . Exploration Rate (%) 51 | 2 89 47 67 Regions Visited 3 Branch Regions 2 Pre-discovered Areas 1 | . . . 1 Known Exits Taken 1 | . 1 . . Unknown Exits Taken 2 | 1 . 1 . Scrap Searched . | . . . . Spaces Dug . | . . . . Terrain Destroyed 17 | . . . 17 Melee . | . . . . Projectile . | . . . . AOE 17 | . . . 17 Terrain Rammed . | . . . . Walls Destroyed . | . . . . Machines Disabled . | . . . . Actions | -11 -10 -10 -10 --------- Run | Scr Mat Min Exi Total 1395 | . 569 307 519 Wait 68 | . 36 . 32 Move 1172 | . 448 283 441 Hop . | . . . . Pick Up 21 | . 13 5 3 Fast Attach 5 | . 5 . . Attach 10 | . 1 2 7 Detach . | . . . . Swap 10 | . 5 1 4 Drop 25 | . 12 6 7 Fire 84 | . 49 10 25 Melee . | . . . . Ram . | . . . . Kick . | . . . . Crush . | . . . . Escape Stasis . | . . . . Rewire . | . . . . Trap . | . . . . Miscellaneous . | . . . . Route ------- -11/Scrapyard -10/Materials (discovered 4 exits: [*Mat x3] / *Min) -10/Mines (discovered 2 exits: [*Mat] / *Exi) -10/Exiles History --------- Turn | Location | Event 1 | -11/Scrapyard | Discovered new exit (range 0) 1 | -11/Scrapyard | Entered Materials 180 | -10/Materials | Discovered new exit (range 10) 301 | -10/Materials | Build established: Mutant 433 | -10/Materials | Discovered new exit (range 16) 673 | -10/Materials | Identified exit to Mines 681 | -10/Materials | Discovered new exit (range 15) 884 | -10/Materials | Entered Mines 928 | -10/Mines | Discovered new exit (range 8) 1407 | -10/Mines | Deemed a non-threat by the Exiles lab entrance 1409 | -10/Mines | Discovered new exit (range 5) 1415 | -10/Mines | Entered Exiles 1415 | -10/Exiles | Accompanied by 1 ally 1454 | -10/Exiles | Met 8R-AWN 1481 | -10/Exiles | Met EX-HEX 1524 | -10/Exiles | Met EX-BIN 1548 | -10/Exiles | Aligned with FarCom system 1550 | -10/Exiles | Given EX-Vault access code 1590 | -10/Exiles | Opened EX-Vault 1627 | -10/Exiles | Warned to stay clear of 0b10 Research branches 1749 | -10/Exiles | Met EX-DEC 1787 | -10/Exiles | Learned location of Zion (-6) 2294 | -10/Exiles | Attacked by the Exiles 2331 | -10/Exiles | Core integrity fell below 50% 2428 | -10/Exiles | Core integrity fell below 20% 2448 | -10/Exiles | Destroyed by 8R-AWN with 8R-AWN's Boregun Last Messages --------------- 02407_ HV Slug penetrates Earth. 02407_ Penetrated by HV Slug. 02407_ HV Slug penetrates Earth. 02409_ Penetrated by HV Slug. 02409_ Critical hit (Destroy). 02409_ Lgt. Treads destroyed. 02409_ HV Slug penetrates Earth. 02409_ Penetrated by HV Slug. 02409_ HV Slug penetrates Earth. 02411_ Penetrated by HV Slug. 02411_ Hvy. Assault Rifle destroyed. 02411_ Penetrated by HV Slug. 02418_ HV Slug penetrates Machine. 02418_ HV Slug penetrates Wall. 02420_ Penetrated by HV Slug. 02424_ Discarded Targeting Computer. 02425_ Penetrated by HV Slug. 02431_ Critical hit (Destroy). 02431_ Hvy. Assault Rifle destroyed. 02436_ Penetrated by HV Slug. Map ----- +----------------------------------------------------+ | ?????????????????????????????????????????????????? | | ?????????????????????????????????????????????????? | | ?????????????????????????????????????????????????? | | ?????????????????????????????????????????????????? | | ?????????????????????????????????????????????????? | | ?????????????????????????????????????????????????? | | ?????????????????????????????????????????????????? | | ?????????????????????????????????????????????????? | | ?????????????????????????????????????????????????? | | ?????????????????????????????????????????????????? | | ?????????????????????????????????????????????????? | | ?????????????????????????????#######?????????????? | | ??????????????? ######???????#!!! "#?????????????? | | ??????????????? #""#??????# "??????????????? | | ??????????????? ??????# "#?????????????? | | ?????????????? #????## ""#????????????## | | ?????????????? #####" ""#???????????? | | ??????????????? ##" ""?????????????" | | ????????????????? #"" #??????????????" | | ??????????????????? ###???????????"" | | ?????????????????????# ##??????????"" | | ??????????????????????## #?????????? | | ???????????????########" #???????????" | | ???????????????# !!""""" #???????# | | ???????????????#! g # ###???### | | ???????????????#! @ # ""#####X# | | ???????????????#! ]]!#; | | ???????????????# !""""""#;#?###"# | | ???????????????########## #???#### | | ????????????????????????# #??????### | | ????????????????????????# #????????### | | ????????????????????????# #??????????## | | ????????????????????????# #???????????## | | ????????????????????????# #????????????##" | | ????????????????????????? ??????????????#"" | | ????????????????????????? ?????????????##" | | ????????????????????????? ?????????????#"" | | ????????????????????????? ?????????????#""" | | ????????????????????????? ?????????????""" | | ????????????????????????? ?????????????""" | | ????????????????????????? ?????????????"" | | ???????????????????????????????????????""" | | ???????????????????????????????????????"" | | ???????????????????????????????????????#"" | | ???????????????????????????????????????#"""" | | ????????????????????????????????????????# | | ?????????????????????????????????????????" | | ?????????????????????????????????????????"""" | | ?????????????????????????????????????????"" | | ?????????????????????????????????????????? | +----------------------------------------------------+ Best States ------------- Heat Dissipation 25 Energy Generation 10 Energy Capacity 250 Matter Stores 300 Matter Capacity 300 Sight Range 16 Terrain Scan Density 10 Armor Coverage 150 Utility Shielding 33 Evasion (%) 55 Targeting Accuracy 5 Recoil Reduction 2 Item Schematics ----------------- None Robot Schematics ------------------ None Fabricated ------------ Nothing Alien Tech Used ----------------- None Achievements -------------- None Challenges ------------ None Game ------ Seed LinkedAluminumVibroblade Manual? 0 Play Time 00:13:22 Cumulative 397.0 hours Start 2022.08.27 @ 13:50:42 End 2022.08.27 @ 14:08:32 Sessions 2 Manual Loads 0 Difficulty Rogue Special Mode None Game No. 411 Rogue 411 Adventurer 0 Explorer 0 Win Type - Total 31 Types 18/3/3/1/2/1/3/0/0 Lore% 91 Gallery% 92 Achievement% 81 Wizard Run 0 Options --------- ASCII 0 Keyboard 0 Movement Arrows Keybinds 0 Fullscreen 2 Font 24/Smallcaps Map View 76x50 Tactical HUD 1 Map Filters NONE Filters NONE Steam 1 RUN: 2a03be73-aca8-4ebd-aa89-74407fd4c470